bitfinex/quotes_SOLUSD_20251218
["timestamp","ask_amount","ask_price","bid_price","bid_amount"]
[1766089230039,11.73651339,118.32,118.28,0.67]
[1766089230259,0.68,118.32,118.28,0.67]
[1766089230646,0.68,118.34,118.29,11.72651339]
[1766089230966,0.68,118.34,118.3,11.05651339]
[1766089231174,9.26,118.35,118.31,11.72651339]
[1766089231363,0.68,118.41,118.33,0.67]
[1766089231666,21.11002984,118.43,118.32,8.80994492]
[1766089231667,1e-08,118.38,118.37,11.05651339]
[1766089231867,4.40781604,118.44,118.38,0.67]
[1766089232061,0.2,118.45,118.41,11.05651339]
[1766089232744,0.2,118.45,118.43,11.72651339]
[1766089232944,0.88,118.48,118.44,11.05651339]
[1766089233259,11.05651339,118.47,118.42,11.05651339]
[1766089233469,0.68,118.46,118.42,11.05651339]
[1766089233653,0.68,118.46,118.41,11.72651339]
[1766089234162,11.73651339,118.44,118.39,11.05651339]
[1766089234360,11.73651339,118.44,118.39,0.67]
[1766089234361,0.68,118.44,118.39,0.67]
[1766089234666,0.68,118.44,118.39,11.72651339]
[1766089234841,11.73651339,118.44,118.39,11.72651339]
[1766089235046,0.68,118.43,118.38,20.31651339]
[1766089235258,11.11767296,118.43,118.38,11.05651339]
[1766089235456,11.11767296,118.43,118.38,11.72651339]
[1766089235662,0.68,118.42,118.38,11.72651339]
[1766089235861,11.73651339,118.41,118.36,11.05651339]
[1766089236064,11.73651339,118.41,118.36,11.72651339]
[1766089237265,0.68,118.41,118.36,11.72651339]
[1766089237467,7.4785925,118.41,118.36,7.4685925]
[1766089237877,7.4785925,118.4,118.35,9.26]
[1766089238178,7.4785925,118.4,118.35,15.91801877]
[1766089238349,9.12258013,118.45,118.39,7.4685925]
[1766089238554,42.39783338,118.49,118.39,19.24761788]
[1766089238555,0.88,118.48,118.39,19.24761788]
[1766089238746,0.88,118.48,118.45,6.7985925]
[1766089238949,0.2,118.48,118.45,6.7985925]
[1766089239450,0.2,118.48,118.44,0.67]
[1766089239651,0.68,118.47,118.42,6.7985925]
[1766089239850,0.68,118.47,118.42,7.4685925]
[1766089240655,7.4785925,118.47,118.41,6.7985925]
[1766089240966,0.68,118.46,118.41,7.4685925]
[1766089241160,0.68,118.45,118.41,6.7985925]
[1766089241364,0.68,118.45,118.4,6.7985925]
[1766089241771,0.68,118.45,118.41,6.7985925]
[1766089242555,7.4685925,118.44,118.39,6.7985925]
[1766089242778,0.67,118.43,118.38,7.5085925]
[1766089242976,6.7985925,118.44,118.39,0.71]
[1766089243160,7.4685925,118.44,118.39,15.95522904]
[1766089243478,10.43767296,118.45,118.41,6.7985925]
[1766089243984,17.23626546,118.45,118.4,0.71]
[1766089244187,0.67,118.44,118.39,15.9550318]
[1766089244674,10.43767296,118.45,118.4,7.5085925]
[1766089244854,17.23626546,118.45,118.4,7.5085925]
[1766089245358,10.43767296,118.45,118.41,7.5085925]
[1766089245674,0.2,118.48,118.44,7.5085925]
[1766089246464,0.2,118.48,118.44,0.71]
[1766089246969,7.6685925,118.48,118.44,0.71]
[1766089247275,0.2,118.48,118.44,7.5085925]
[1766089247497,0.2,118.48,118.45,6.7985925]
[1766089247856,0.2,118.48,118.45,7.5085925]
[1766089248058,6.9985925,118.48,118.41,8.80994492]
[1766089248257,7.4685925,118.46,118.41,7.5085925]
[1766089248486,10.63767296,118.48,118.43,7.5085925]
[1766089248670,10.63767296,118.48,118.44,6.7985925]
[1766089248865,10.63767296,118.48,118.44,15.95153224]
[1766089248866,0.2,118.48,118.44,15.95153224]
[1766089249256,0.2,118.48,118.45,6.7985925]
[1766089249685,0.2,118.48,118.44,15.95153224]
[1766089250078,0.2,118.48,118.44,7.5085925]
[1766089250782,0.2,118.48,118.44,0.71]
[1766089251084,0.2,118.48,118.44,7.5085925]
[1766089251284,0.2,118.48,118.44,0.71]
[1766089251472,0.2,118.48,118.44,7.5085925]
[1766089251671,16.10883557,118.48,118.43,7.5085925]
[1766089251873,16.10883557,118.48,118.43,0.71]
[1766089252071,16.10883557,118.48,118.43,7.5085925]
[1766089252584,0.87,118.48,118.44,6.7985925]
[1766089252889,7.6685925,118.48,118.43,7.5085925]
[1766089253587,0.87,118.48,118.43,6.73859395]
[1766089253795,0.87,118.48,118.45,6.7985925]
[1766089253796,0.2,118.48,118.45,6.7985925]
[1766089254988,0.2,118.48,118.45,7.5085925]
[1766089256086,0.87,118.48,118.43,0.71]
[1766089256262,0.87,118.48,118.43,7.5085925]
[1766089256863,0.87,118.48,118.43,6.7985925]
[1766089257182,0.87,118.48,118.44,7.5085925]
[1766089257183,0.2,118.48,118.44,7.5085925]
[1766089257570,0.67,118.47,118.42,0.71]
[1766089257772,0.67,118.47,118.42,16.7485925]
[1766089258195,7.4685925,118.44,118.38,7.5085925]
[1766089258505,6.7985925,118.42,118.36,9.24]
[1766089258690,7.4685925,118.39,118.34,6.7985925]
[1766089258869,7.4685925,118.39,118.33,15.95910539]
[1766089259074,7.4685925,118.39,118.34,15.95881843]
[1766089259399,7.4685925,118.39,118.34,7.5085925]
[1766089259565,7.4685925,118.39,118.34,15.95870317]
[1766089259897,6.7985925,118.4,118.35,15.95772844]
[1766089260402,7.4685925,118.41,118.35,15.95772844]
[1766089260768,7.4685925,118.39,118.33,0.71]
[1766089260996,7.4685925,118.37,118.32,0.1]
[1766089261211,7.4685925,118.37,118.32,0.81]
[1766089261421,6.7985925,118.36,118.32,0.81]
[1766089261627,7.5085925,118.36,118.32,0.81]
[1766089261913,6.7985925,118.35,118.32,0.1]
[1766089262112,0.71,118.36,118.32,0.1]
[1766089262313,7.5085925,118.4,118.34,6.7985925]
[1766089262496,7.5085925,118.42,118.37,0.72]
[1766089262696,0.71,118.42,118.37,7.5185925]
[1766089262903,0.71,118.42,118.37,0.72]
[1766089263098,7.5085925,118.42,118.37,0.72]
[1766089263300,7.5085925,118.42,118.35,17.23626546]
[1766089263301,0.71,118.4,118.35,17.23626546]
[1766089263595,6.7985925,118.39,118.33,0.72]
[1766089263808,6.7985925,118.38,118.33,0.72]
[1766089264010,0.71,118.37,118.33,0.72]
[1766089264206,7.5085925,118.37,118.33,0.72]
[1766089264592,0.71,118.37,118.33,0.72]
[1766089265122,7.5085925,118.37,118.33,0.72]
[1766089265692,7.5085925,118.37,118.32,9.34]
[1766089265921,7.5085925,118.35,118.32,0.1]
[1766089266107,6.7985925,118.34,118.32,0.1]
[1766089266419,11.14767296,118.38,118.33,0.72]
[1766089266596,17.94626546,118.38,118.33,0.72]
[1766089267810,26.3936975,118.38,118.33,0.72]
[1766089268215,0.71,118.36,118.32,0.1]
[1766089268803,7.5085925,118.35,118.32,0.1]
[1766089269316,0.71,118.34,118.29,7.5185925]
[1766089269523,0.71,118.34,118.3,8.45297785]
[1766089269700,7.5085925,118.34,118.29,0.72]
[1766089270030,0.71,118.34,118.29,0.72]
[1766089270198,7.5085925,118.34,118.29,0.72]
[1766089270699,15.95902783,118.34,118.29,0.72]
[1766089270900,15.95902783,118.34,118.28,9.26]
[1766089270901,0.71,118.32,118.28,9.26]
[1766089271316,0.71,118.32,118.28,9.98]
[1766089271833,7.5085925,118.32,118.28,0.72]
[1766089272319,0.71,118.32,118.28,0.72]
[1766089272518,7.5085925,118.32,118.28,0.72]
[1766089273020,15.96025554,118.32,118.28,0.72]
[1766089273221,6.7985925,118.31,118.26,9.13542812]
[1766089273402,6.7985925,118.31,118.27,0.68]
[1766089273611,7.5085925,118.32,118.27,0.68]
[1766089273924,6.7985925,118.31,118.27,0.68]
[1766089274824,15.91102405,118.31,118.27,0.68]
[1766089275216,7.4585925,118.31,118.27,0.68]
[1766089275529,7.4585925,118.31,118.22,0.68]
[1766089275530,0.66,118.27,118.22,0.68]
[1766089275825,7.4585925,118.27,118.22,9.13874593]
[1766089276024,0.66,118.27,118.22,15.93733843]
[1766089276214,17.23626546,118.29,118.23,7.4785925]
[1766089276436,10.43767296,118.29,118.25,0.68]
[1766089276645,17.89626546,118.29,118.25,0.68]
[1766089276853,7.4585925,118.28,118.23,9.94]
[1766089277165,6.7985925,118.25,118.21,0.68]
[1766089277449,0.66,118.26,118.21,0.68]
[1766089277450,7.4585925,118.26,118.21,0.68]
[1766089277759,6.7985925,118.23,118.19,0.68]
[1766089278058,0.66,118.24,118.19,0.68]
[1766089278059,7.4585925,118.24,118.19,0.68]
[1766089278362,10.43767296,118.26,118.21,0.68]
[1766089278363,17.23626546,118.26,118.21,0.68]
[1766089278520,9.26,118.27,118.23,0.68]
[1766089278926,16.7185925,118.27,118.22,0.68]
[1766089279345,16.7185925,118.27,118.19,0.68]
[1766089279346,6.7985925,118.24,118.19,0.68]
[1766089279623,0.66,118.25,118.17,8.46211057]
[1766089279624,6.7985925,118.22,118.17,8.46211057]
[1766089279826,6.7985925,118.23,118.17,15.26070307]
[1766089280035,7.4585925,118.23,118.18,0.68]
[1766089280427,10.43767296,118.25,118.18,0.68]
[1766089280627,7.4585925,118.25,118.2,0.68]
[1766089280927,0.66,118.25,118.2,0.68]
[1766089281126,17.23626546,118.26,118.18,29.61575074]
[1766089281447,17.89626546,118.26,118.21,0.68]
[1766089281632,7.4585925,118.25,118.2,0.68]
[1766089282143,0.66,118.25,118.2,7.4785925]
[1766089282535,7.4585925,118.25,118.2,0.68]
[1766089283344,0.66,118.25,118.2,15.25861928]
[1766089283544,0.66,118.25,118.21,0.68]
[1766089283545,7.4585925,118.25,118.21,0.68]
[1766089284050,0.66,118.28,118.22,6.7985925]
[1766089284348,9.92,118.3,118.25,0.68]
[1766089284528,16.7185925,118.3,118.25,0.68]
[1766089284730,6.7985925,118.29,118.25,0.68]
[1766089284931,0.66,118.29,118.25,0.68]
[1766089285552,6.7985925,118.29,118.23,15.93640147]
[1766089285731,7.4585925,118.29,118.24,0.68]
[1766089286232,16.0585925,118.3,118.25,0.68]
[1766089286434,25.1716885,118.3,118.25,0.68]
[1766089286650,16.7185925,118.3,118.25,0.68]
[1766089286854,16.7185925,118.3,118.25,9.13660271]
[1766089287036,9.92,118.3,118.25,15.93519521]
[1766089287660,7.4585925,118.35,118.29,0.68]
[1766089287861,7.4585925,118.35,118.31,6.7985925]
[1766089287862,0.66,118.35,118.31,6.7985925]
[1766089288065,7.4585925,118.35,118.29,7.4785925]
[1766089288372,7.4585925,118.35,118.29,6.7985925]
[1766089288670,15.90827226,118.35,118.29,7.4785925]
[1766089288874,15.90827226,118.35,118.29,15.93223791]
[1766089289372,15.90827226,118.35,118.3,0.68]
[1766089289560,6.7985925,118.34,118.3,0.68]
[1766089289765,6.7985925,118.34,118.25,103.38329809]
[1766089289766,7.4585925,118.32,118.26,15.93424662]
[1766089289955,7.4585925,118.32,118.27,0.68]
[1766089290268,7.4585925,118.35,118.29,6.7985925]
[1766089290473,7.4585925,118.35,118.3,0.68]
[1766089290766,16.7185925,118.37,118.31,6.7985925]
[1766089290973,16.7185925,118.37,118.32,0.68]
[1766089291353,9.26,118.37,118.33,0.68]
[1766089291676,10.43767296,118.38,118.33,7.4785925]
[1766089292064,18.88508845,118.38,118.33,7.4785925]
[1766089292257,26.34368095,118.38,118.33,0.68]
[1766089293546,7.4585925,118.37,118.31,15.93071051]
[1766089293795,7.4585925,118.37,118.33,9.13090137]
[1766089293796,0.66,118.37,118.33,9.13090137]
[1766089293958,0.66,118.37,118.33,0.68]
[1766089294559,0.66,118.41,118.36,7.4785925]
[1766089294754,9.92,118.42,118.36,7.4785925]
[1766089294969,9.92,118.42,118.37,0.68]
[1766089295174,27.15626546,118.42,118.37,0.68]
[1766089295357,7.4585925,118.41,118.35,6.7985925]
[1766089295679,6.7985925,118.4,118.36,0.68]
[1766089296072,6.7985925,118.4,118.34,7.4785925]
[1766089296264,0.66,118.37,118.32,15.92996876]
[1766089296667,7.4585925,118.41,118.35,0.68]
[1766089296865,7.4585925,118.4,118.35,0.68]
[1766089297984,0.66,118.39,118.34,6.7985925]
[1766089298183,7.4585925,118.38,118.33,0.68]
[1766089298383,0.66,118.38,118.33,15.92943598]
[1766089298570,0.66,118.37,118.31,7.4785925]
[1766089298765,7.4585925,118.37,118.31,7.4785925]
[1766089299085,7.4585925,118.36,118.31,0.68]
[1766089299271,7.4585925,118.36,118.31,9.13236868]
[1766089299471,11.71670837,118.36,118.31,9.13236868]
[1766089300086,11.71670837,118.36,118.31,20.18907705]
[1766089300087,0.66,118.36,118.31,20.18907705]
[1766089300393,11.05670837,118.37,118.32,0.68]
[1766089300581,19.50536239,118.37,118.32,0.68]
[1766089300781,11.05670837,118.36,118.32,0.68]
[1766089301460,9.10865402,118.37,118.28,8.45430124]
[1766089301461,11.05670837,118.34,118.28,8.45430124]
[1766089301782,20.16695501,118.34,118.28,9.13418396]
[1766089301977,0.66,118.39,118.33,0.68]
[1766089302157,0.66,118.38,118.33,0.68]
[1766089302357,11.71670837,118.38,118.33,0.68]
[1766089302780,0.66,118.38,118.33,11.73670837]
[1766089303081,11.71670837,118.38,118.33,0.68]
[1766089303273,0.69,118.37,118.33,0.68]
[1766089303470,0.69,118.37,118.33,11.73670837]
[1766089304483,20.19485803,118.37,118.32,11.05670837]
[1766089304663,20.19485803,118.37,118.31,11.75670837]
[1766089304664,11.74670837,118.36,118.31,11.75670837]
[1766089305063,11.74670837,118.36,118.31,0.7]
[1766089305359,0.69,118.33,118.27,9.96]
[1766089305561,0.69,118.33,118.29,8.45375325]
[1766089305862,10.43767296,118.34,118.3,20.20971248]
[1766089306062,9.26,118.35,118.31,11.75670837]
[1766089306312,10.43767296,118.36,118.32,11.05670837]
[1766089306490,10.43767296,118.36,118.33,0.7]
[1766089306782,20.38767296,118.38,118.33,11.75670837]
[1766089306977,28.83534447,118.38,118.33,11.75670837]
[1766089307487,20.38767296,118.38,118.33,11.75670837]
[1766089307980,20.38767296,118.38,118.34,19.5065986]
[1766089307981,9.26,118.38,118.34,19.5065986]
[1766089308189,0.69,118.42,118.37,11.75670837]
[1766089308387,0.69,118.42,118.38,11.05670837]
[1766089308772,19.5728065,118.42,118.37,11.75670837]
[1766089308972,30.62951487,118.42,118.37,11.75670837]
[1766089309482,0.69,118.41,118.36,11.05670837]
[1766089309671,0.69,118.41,118.36,11.75670837]
[1766089310070,20.19196979,118.41,118.36,11.75670837]
[1766089310563,9.95,118.41,118.36,20.20545559]
[1766089310764,0.69,118.41,118.37,0.7]
[1766089310983,9.95,118.41,118.37,0.7]
[1766089311790,9.26,118.41,118.37,11.75670837]
[1766089312384,9.26,118.41,118.37,0.7]
[1766089313985,0.69,118.37,118.32,0.7]
[1766089314186,0.69,118.36,118.32,0.7]
[1766089314386,11.74670837,118.36,118.3,11.75670837]
[1766089314592,10.43767296,118.38,118.34,11.75670837]
[1766089314781,0.69,118.4,118.35,11.05670837]
[1766089314988,0.69,118.4,118.32,29.58074427]
[1766089314989,19.69767296,118.41,118.36,11.05670837]
[1766089315293,19.69767296,118.41,118.37,0.7]
[1766089316882,39.19964682,118.41,118.37,0.7]
[1766089317065,30.62964682,118.41,118.37,0.7]
[1766089317269,30.62964682,118.41,118.35,19.50599583]
[1766089317567,30.62964682,118.41,118.35,0.7]
[1766089317568,21.00670837,118.4,118.35,0.7]
[1766089317993,0.69,118.39,118.33,30.64501992]
[1766089318197,0.69,118.39,118.34,0.7]
[1766089318497,9.26,118.38,118.35,0.7]
[1766089318994,9.95,118.38,118.33,0.7]
[1766089319297,21.00670837,118.38,118.33,0.7]
[1766089319671,9.95,118.38,118.33,9.1508528]
[1766089319884,10.43767296,118.39,118.34,0.7]
[1766089320088,10.43767296,118.39,118.35,0.7]
[1766089320288,9.26,118.38,118.35,0.7]
[1766089321581,9.26,118.39,118.36,0.67]
[1766089321784,21.77419878,118.46,118.36,11.05670837]
[1766089321983,11.72670837,118.41,118.35,0.67]
[1766089322306,38.35581177,118.46,118.33,40.63465762]
[1766089322307,0.67,118.38,118.33,40.63465762]
[1766089322492,11.72670837,118.41,118.35,0.67]
[1766089322802,9.26,118.4,118.36,0.67]
[1766089325305,9.26,118.4,118.32,0.67]
[1766089325306,11.05670837,118.37,118.32,0.67]
[1766089325509,10.43767296,118.38,118.27,11.05670837]
[1766089325510,11.72670837,118.33,118.27,11.05670837]
[1766089325681,20.98670837,118.33,118.28,0.67]
[1766089326097,11.72670837,118.32,118.26,20.18223243]
[1766089326315,11.72670837,118.32,118.27,0.67]
[1766089326690,9.26,118.32,118.28,0.67]
[1766089327285,20.31670837,118.32,118.28,0.67]
[1766089327483,9.26,118.32,118.28,0.67]
[1766089327802,20.98670837,118.32,118.26,9.12575511]
[1766089328686,20.98670837,118.32,118.24,17.93695891]
[1766089328687,11.72670837,118.3,118.24,17.93695891]
[1766089328878,11.05670837,118.29,118.24,9.12701399]
[1766089329084,20.31670837,118.29,118.24,9.12701399]
[1766089329307,20.31670837,118.29,118.24,0.67]
[1766089329510,11.05670837,118.27,118.22,17.71857857]
[1766089329811,19.69767296,118.29,118.23,8.45807453]
[1766089329812,11.72670837,118.28,118.23,8.45807453]
[1766089330106,11.05670837,118.27,118.22,0.67]
[1766089330287,11.05670837,118.25,118.2,8.90994492]
[1766089330486,11.05670837,118.25,118.21,0.67]
[1766089330889,11.05670837,118.25,118.2,0.1]
[1766089330890,11.72670837,118.25,118.2,8.56007041]
[1766089331091,11.72670837,118.25,118.2,0.1]
[1766089331323,8.45674731,118.25,118.2,0.1]
[1766089331606,11.05670837,118.22,118.2,0.1]
[1766089331790,20.98670837,118.22,118.19,0.1]
[1766089331993,20.98670837,118.22,118.15,19.52025072]
[1766089331994,0.67,118.21,118.15,19.52025072]
[1766089332179,9.26,118.21,118.17,0.67]
[1766089332384,11.05670837,118.22,118.17,0.67]
[1766089332603,11.05670837,118.22,118.17,9.13228156]
[1766089332604,20.31670837,118.22,118.17,9.13228156]
[1766089333018,20.31670837,118.22,118.17,0.67]
[1766089333301,10.43767296,118.23,118.18,0.71]
[1766089333514,30.75438133,118.23,118.18,0.71]
[1766089333823,19.69767296,118.23,118.18,0.71]
[1766089334030,9.26,118.23,118.19,0.71]
[1766089334613,9.26,118.23,118.19,9.17089368]
[1766089336026,20.31670837,118.26,118.2,0.71]
[1766089336234,9.26,118.27,118.22,0.71]
[1766089336395,8.80994492,118.3,118.21,11.05670837]
[1766089336396,11.05670837,118.3,118.23,0.71]
[1766089336600,20.31670837,118.3,118.25,0.71]
[1766089337202,20.31670837,118.3,118.26,0.71]
[1766089337428,20.31670837,118.3,118.21,9.51994492]
[1766089337429,11.73670837,118.27,118.21,9.51994492]
[1766089337742,19.69767296,118.3,118.13,42.28885375]
[1766089337743,11.05670837,118.24,118.19,0.71]
[1766089337926,11.05670837,118.24,118.19,9.17089132]
[1766089338298,11.05670837,118.23,118.19,0.71]
[1766089338502,11.73670837,118.24,118.19,0.71]
[1766089338911,9.13782569,118.24,118.19,0.71]
[1766089339118,11.73670837,118.22,118.17,9.26]
[1766089339328,11.05670837,118.23,118.19,0.71]
[1766089339618,20.31670837,118.24,118.19,9.17083556]
[1766089340117,9.26,118.24,118.19,9.17083556]
[1766089340321,9.26,118.24,118.19,8.46083556]
[1766089340505,9.26,118.24,118.15,8.80994492]
[1766089340506,11.05670837,118.21,118.13,0.2]
[1766089340704,10.43767296,118.23,118.16,11.76670837]
[1766089340705,11.73670837,118.22,118.16,11.76670837]
[1766089340901,9.26,118.23,118.18,0.71]
[1766089341098,20.43671137,118.23,118.18,0.71]
[1766089341310,0.120003,118.23,118.2,0.71]
[1766089341702,0.120003,118.23,118.21,0.71]
[1766089342522,0.120003,118.23,118.18,8.80994492]
[1766089342702,0.120003,118.23,118.19,9.17067086]
[1766089343019,11.85671137,118.23,118.17,31.46438133]
[1766089343225,0.120003,118.23,118.18,0.71]
[1766089343412,0.120003,118.23,118.19,0.71]
[1766089343722,0.120003,118.23,118.19,9.17074023]
[1766089344614,11.85671137,118.23,118.17,9.26]
[1766089344819,0.800003,118.23,118.18,0.71]
[1766089345615,0.120003,118.23,118.2,0.71]
[1766089346903,0.120003,118.23,118.2,9.16976026]
[1766089347122,0.120003,118.23,118.2,61.81]
[1766089347325,0.120003,118.23,118.2,70.27020673]
[1766089348318,3e-06,118.23,118.21,0.71]
[1766089348905,3e-06,118.23,118.21,61.81]
[1766089349207,3e-06,118.23,118.22,11.76670837]
[1766089350311,3e-06,118.23,118.22,20.22551398]
[1766089350539,3e-06,118.23,118.22,9.16880561]
[1766089350728,3e-06,118.23,118.22,20.22551398]
[1766089351112,20.99670837,118.32,118.25,0.71]
[1766089351316,31.43438133,118.32,118.26,11.76670837]
[1766089351515,0.68,118.32,118.26,11.05670837]
[1766089351717,11.73670837,118.32,118.27,0.71]
[1766089352240,11.73670837,118.32,118.27,9.16519443]
[1766089353510,0.68,118.32,118.27,9.16519443]
[1766089353931,0.68,118.32,118.27,20.2219028]
[1766089354337,11.73670837,118.32,118.27,9.16519443]
[1766089354738,0.68,118.32,118.27,9.16519443]
[1766089355041,0.68,118.29,118.25,8.45641302]
[1766089355336,0.68,118.29,118.24,9.1670091]
[1766089355337,22.17438133,118.29,118.24,9.1670091]
[1766089355920,29.93908623,118.32,118.26,0.71]
[1766089355921,11.73670837,118.32,118.26,0.71]
[1766089356122,11.73670837,118.32,118.27,11.76670837]
[1766089356123,0.68,118.32,118.27,11.76670837]
[1766089356334,11.73670837,118.32,118.27,0.71]
[1766089356642,0.68,118.32,118.27,11.76670837]
[1766089356845,0.68,118.32,118.27,0.71]
[1766089357218,11.73670837,118.32,118.27,0.71]
[1766089358135,11.73670837,118.32,118.27,9.1651455]
[1766089359024,0.68,118.32,118.27,20.22185387]
[1766089359237,30.75438133,118.33,118.27,20.22185387]
[1766089359238,20.31670837,118.34,118.29,0.71]
[1766089359452,20.99670837,118.34,118.29,0.71]
[1766089360153,9.94,118.34,118.29,9.16364973]
[1766089360320,11.73670837,118.34,118.29,9.16364973]
[1766089360518,11.73670837,118.34,118.29,0.71]
[1766089360733,11.73670837,118.34,118.29,9.16379932]
[1766089361049,11.73670837,118.32,118.27,72.24767296]
[1766089361220,11.73670837,118.32,118.27,61.81]
[1766089361420,7.48935052,118.32,118.27,61.81]
[1766089361629,7.48935052,118.3,118.24,70.26679743]
[1766089361828,7.48935052,118.28,118.22,0.71]
[1766089362127,7.48935052,118.28,118.22,9.16825041]
[1766089362329,6.80935052,118.26,118.22,0.71]
[1766089362552,7.48935052,118.26,118.21,8.45920729]
[1766089362939,7.48935052,118.26,118.21,9.16920729]
[1766089363249,9.26,118.27,118.22,9.16870662]
[1766089363421,9.94,118.27,118.22,9.16870662]
[1766089363616,16.74935052,118.27,118.22,9.16870662]
[1766089364045,9.26,118.27,118.22,15.26805714]
[1766089364254,9.26,118.27,118.22,15.97805714]
[1766089366124,9.94,118.27,118.22,9.16870662]
[1766089366447,9.26,118.27,118.23,0.71]
[1766089367840,0.68,118.28,118.23,0.71]
[1766089368044,9.26,118.3,118.25,8.45665961]
[1766089368352,16.74935052,118.3,118.25,0.71]
[1766089368758,7.48935052,118.28,118.23,61.81]
[1766089368923,7.48935052,118.28,118.23,0.71]
[1766089369129,7.48935052,118.28,118.23,9.16808043]
[1766089369950,7.48935052,118.28,118.23,0.71]
[1766089370169,7.48935052,118.28,118.17,8.46191583]
[1766089370170,0.68,118.23,118.17,8.46191583]
[1766089370377,6.80935052,118.2,118.15,9.17350149]
[1766089370743,7.48935052,118.21,118.16,0.71]
[1766089371064,16.74935052,118.21,118.16,0.71]
[1766089372065,25.20895342,118.21,118.16,0.71]
[1766089372265,6.80935052,118.2,118.16,0.71]
[1766089373339,6.80935052,118.19,118.14,0.71]
[1766089373551,7.48935052,118.19,118.14,0.71]
[1766089373751,0.68,118.19,118.14,0.71]
[1766089373961,7.48935052,118.19,118.14,0.71]
[1766089374152,9.94,118.19,118.14,0.71]
[1766089374348,16.74935052,118.19,118.14,0.71]
[1766089374943,0.68,118.19,118.14,0.71]
[1766089375147,31.58647593,118.21,118.14,0.71]
[1766089375148,19.69767296,118.21,118.17,0.71]
[1766089375354,16.06935052,118.22,118.17,0.71]
[1766089375562,9.26,118.22,118.17,0.71]
[1766089376160,19.69767296,118.22,118.17,0.71]
[1766089376382,9.26,118.22,118.17,9.1720144]
[1766089376544,9.26,118.22,118.18,0.71]
[1766089376745,9.26,118.23,118.18,0.71]
[1766089377165,16.74935052,118.23,118.18,0.71]
[1766089378272,0.68,118.32,118.21,17.24702348]
[1766089378565,7.48935052,118.32,118.26,0.71]
[1766089378750,6.80935052,118.28,118.23,0.71]
[1766089378950,6.80935052,118.27,118.23,0.71]
[1766089379343,0.68,118.28,118.18,9.17149124]
[1766089379344,7.48935052,118.24,118.18,9.17149124]
[1766089379547,6.80935052,118.23,118.18,9.17149124]
[1766089380258,6.80935052,118.23,118.18,8.46149124]
[1766089380463,26.50702348,118.25,118.2,0.71]
[1766089380971,6.80935052,118.26,118.21,0.71]
[1766089381173,27.18702348,118.27,118.21,0.71]
[1766089381481,10.43767296,118.27,118.23,0.66]
[1766089381652,16.06935052,118.28,118.23,0.66]
[1766089382053,0.99999999,118.34,118.24,0.66]
[1766089382274,42.24006128,118.38,118.27,0.66]
[1766089382488,16.26935052,118.36,118.3,0.66]
[1766089382777,16.26935052,118.36,118.28,9.26]
[1766089382778,9.46,118.36,118.31,0.66]
[1766089382953,19.89767296,118.36,118.31,0.66]
[1766089383152,16.26935052,118.36,118.31,0.66]
[1766089383479,26.70702348,118.36,118.31,0.66]
[1766089383774,7.45935052,118.4,118.33,6.80935052]
[1766089383956,0.2,118.41,118.35,15.25886467]
[1766089384144,0.2,118.41,118.34,10.43767296]
[1766089384145,6.80935052,118.4,118.34,9.10992402]
[1766089384349,6.80935052,118.4,118.34,0.66]
[1766089384350,6.80935052,118.39,118.34,0.66]
[1766089384760,6.80935052,118.39,118.32,17.71147908]
[1766089384966,7.45935052,118.37,118.31,7.46935052]
[1766089385172,7.45935052,118.37,118.32,9.11109521]
[1766089385173,0.65,118.37,118.32,9.11109521]
[1766089385371,0.65,118.37,118.32,0.66]
[1766089385372,6.80935052,118.37,118.32,0.66]
[1766089385563,7.45935052,118.37,118.32,0.66]
[1766089385968,0.65,118.37,118.32,15.92099162]
[1766089386164,6.80935052,118.38,118.32,15.92099162]